bitfinex/quotes_ETHUSD_20240731
["timestamp","ask_amount","ask_price","bid_price","bid_amount"]
[1722445095833,3.03119,3299.1,3298.1,5.37598]
[1722445096002,3.03137,3298.9,3298.3,3.03181]
[1722445096203,3.03137,3298.9,3298.4,0.303181]
[1722445096531,3.03119,3299.1,3298.4,0.303181]
[1722445096532,3.03123,3299.0,3298.4,3.334941]
[1722445097077,3.03136,3298.9,3298.1,5.37599]
[1722445097259,3.03163,3298.6,3298.1,2.344]
[1722445097545,3.03163,3298.6,3297.9,3.03216]
[1722445097911,3.03163,3298.6,3297.7,5.52077]
[1722445098116,3.03201,3298.2,3297.4,3.03268]
[1722445098350,3.03214,3298.0,3297.4,3.03268]
[1722445098697,3.03205,3298.1,3297.4,3.03264]
[1722445098908,3.03205,3298.1,3297.4,6.06525]
[1722445099128,3.03205,3298.1,3297.5,3.03258]
[1722445099850,3.03205,3298.1,3297.5,6.06511]
[1722445100151,3.03196,3298.2,3297.6,3.03249]
[1722445101147,3.03179,3298.4,3297.6,3.03249]
[1722445101349,4.4311,3298.8,3298.2,3.0319]
[1722445101655,4.4311,3298.8,3298.0,3.03209]
[1722445101656,3.03163,3298.6,3298.0,3.03209]
[1722445101948,3.03158,3298.7,3298.1,3.03202]
[1722445102144,6.8972,3299.1,3298.0,3.03207]
[1722445102321,3.0,3299.0,3298.0,3.03207]
[1722445102502,3.0315,3298.7,3298.1,3.03199]
[1722445103147,3.0315,3298.7,3297.9,3.03221]
[1722445103315,3.0315,3298.7,3298.0,3.0321]
[1722445103522,3.03166,3298.6,3298.1,3.03202]
[1722445103751,3.03143,3298.8,3298.1,3.03202]
[1722445103923,3.98972,3299.0,3298.3,3.03185]
[1722445103924,7.02098,3299.0,3298.3,3.03185]
[1722445104250,3.03138,3298.9,3298.3,3.0318]
[1722445104422,3.03122,3299.0,3298.3,3.638183]
[1722445104617,3.03131,3298.9,3298.3,3.638183]
[1722445105203,3.0314,3298.8,3298.3,3.0318]
[1722445106018,6.06289,3298.8,3298.2,3.03193]
[1722445106244,3.03148,3298.8,3298.2,3.03193]
[1722445106403,5.49727,3299.1,3298.3,3.03184]
[1722445106608,3.03131,3298.9,3298.3,3.03184]
[1722445106951,3.03165,3298.6,3298.0,3.0321]
[1722445107109,6.06331,3298.6,3298.0,3.0321]
[1722445107309,3.03165,3298.6,3298.0,3.0321]
[1722445107851,3.03182,3298.4,3297.8,3.03225]
[1722445109358,3.03192,3298.3,3297.6,5.40534]
[1722445109510,3.03177,3298.4,3297.7,3.540534]
[1722445109707,3.03177,3298.4,3297.8,3.0323]
[1722445109907,3.03187,3298.3,3297.7,3.540534]
[1722445110555,4.4311,3298.7,3297.7,3.540534]
[1722445110724,3.03183,3298.4,3297.8,3.03227]
[1722445111133,4.4311,3298.7,3297.7,3.540534]
[1722445111337,3.03159,3298.6,3298.1,3.03204]
[1722445112070,7.46262,3298.7,3298.1,3.03204]
[1722445112266,4.4311,3298.7,3298.2,3.0319]
[1722445112471,5.49729,3299.1,3298.3,3.03178]
[1722445112681,3.03119,3299.1,3298.6,3.03158]
[1722445112829,3.03119,3299.1,3298.3,5.55054834]
[1722445112830,6.06239,3299.1,3298.4,3.03169]
[1722445113032,3.03119,3299.1,3298.5,3.03165]
[1722445113233,7.46209,3299.3,3298.7,3.03149]
[1722445113440,7.46209,3299.3,3298.8,3.03138]
[1722445113441,4.4311,3299.3,3298.8,3.03138]
[1722445113631,4.4311,3299.3,3298.6,3.03152]
[1722445113851,6.0622,3299.2,3298.6,3.03152]
[1722445114165,3.03108,3299.2,3298.6,3.03152]
[1722445114694,7.46204,3299.3,3298.7,3.03148]
[1722445114832,7.46204,3299.3,3298.7,0.6063]
[1722445114833,3.03104,3299.2,3298.7,0.6063]
[1722445115041,7.46204,3299.3,3298.6,3.03152]
[1722445115271,7.46204,3299.3,3298.7,3.03148]
[1722445115454,7.46204,3299.3,3298.5,3.03161]
[1722445115659,3.03119,3299.1,3298.5,3.03161]
[1722445115833,3.03131,3298.9,3298.2,3.638334]
[1722445116031,3.03137,3298.9,3298.3,3.03184]
[1722445116855,3.03145,3298.8,3298.1,3.03196]
[1722445117045,3.03145,3298.8,3298.0,3.03209]
[1722445117046,3.03173,3298.5,3298.0,3.03212]
[1722445117316,3.03173,3298.5,3297.8,3.03224]
[1722445117462,3.03173,3298.5,3297.9,0.303224]
[1722445118083,3.03156,3298.7,3298.0,3.03211]
[1722445118404,3.03144,3298.8,3298.2,3.0319]
[1722445118613,3.03116,3299.1,3298.4,3.03175]
[1722445118812,2.3477,3299.2,3298.3,3.0318]
[1722445119118,2.3477,3299.2,3298.2,3.03194]
[1722445119119,3.03137,3298.9,3298.2,3.03194]
[1722445119412,3.03161,3298.6,3298.0,3.03207]
[1722445119914,3.03143,3298.8,3298.0,6.06413]
[1722445120110,3.03156,3298.7,3298.0,3.03206]
[1722445120476,3.03159,3298.6,3298.0,3.03206]
[1722445121112,3.03169,3298.5,3297.9,0.303224]
[1722445121569,2.3477,3299.2,3298.1,3.03199]
[1722445121570,3.03154,3298.7,3298.1,3.03199]
[1722445122027,4.4311,3298.9,3298.4,3.03168]
[1722445122190,4.4311,3298.9,3298.5,3.03165]
[1722445122720,4.4311,3298.9,3298.4,3.0317]
[1722445123474,4.4311,3298.9,3298.6,3.03158]
[1722445125714,4.4311,3298.9,3298.7,3.03149]
[1722445125916,4.4311,3298.9,3298.7,3.38929504]
[1722445126101,4.4311,3298.9,3298.7,0.35780504]
[1722445126473,4.4311,3298.9,3298.7,3.38924504]
[1722445127171,4.4311,3298.9,3298.8,3.0314]
[1722445127607,3.0309,3299.4,3298.8,3.0314]
[1722445128425,6.06182,3299.4,3298.8,3.0314]
[1722445129122,3.0309,3299.4,3298.8,3.0314]
[1722445129505,3.0309,3299.4,3298.9,3.0313]
[1722445129908,5.41651,3299.6,3299.0,3.03116]
[1722445129909,3.03071,3299.6,3299.0,3.03116]
[1722445130109,4.4311,3299.7,3299.1,3.03112]
[1722445130110,7.4617,3299.7,3299.1,3.03112]
[1722445130426,3.03068,3299.6,3299.1,3.03112]
[1722445132081,4.4311,3299.7,3298.7,3.03144]
[1722445132308,3.03091,3299.4,3298.7,3.03144]
[1722445132837,3.03091,3299.4,3298.7,3.03142]
[1722445132838,3.03095,3299.3,3298.7,3.03142]
[1722445134193,3.03095,3299.3,3298.8,3.03138]
[1722445135020,3.03095,3299.3,3298.5,3.03162]
[1722445135227,3.03095,3299.3,3298.5,3.572582]
[1722445135406,3.0311,3299.2,3298.7,3.03148]
[1722445136498,3.03094,3299.4,3298.7,3.03145]
[1722445136694,3.03094,3299.4,3298.8,3.03135]
[1722445137399,3.03094,3299.4,3298.9,3.03131]
[1722445137599,3.03049,3299.8,3299.1,3.03107]
[1722445137799,3.03044,3299.9,3299.3,3.03094]
[1722445138026,3.03044,3299.9,3299.3,3.03089]
[1722445138618,3.03058,3299.7,3299.1,5.45574]
[1722445139315,3.03074,3299.6,3299.0,3.0312]
[1722445139633,3.03058,3299.7,3299.0,3.0312]
[1722445140204,3.03067,3299.6,3299.0,3.03115]
[1722445140637,3.03051,3299.8,3299.1,3.03112]
[1722445140638,6.06108,3299.8,3299.1,3.03112]
[1722445141038,3.03059,3299.7,3299.1,3.03112]
[1722445141472,3.03059,3299.7,3299.1,3.03106]
[1722445141944,3.03059,3299.7,3299.2,3.03103]
[1722445143539,3.0305,3299.8,3299.2,3.03098]
[1722445143750,10.49183,3300.0,3299.4,3.03079]
[1722445144079,7.46145,3300.0,3299.4,3.03084]
[1722445144265,3.0304,3299.9,3299.4,3.03084]
[1722445144667,7.46145,3300.0,3299.4,3.03084]
[1722445145030,7.46145,3300.0,3299.2,6.365008]
[1722445145231,7.46145,3300.0,3299.2,3.334048]
[1722445145632,3.03049,3299.8,3299.2,3.334048]
[1722445145833,3.03059,3299.7,3299.2,3.03095]
[1722445146284,3.0304,3299.9,3299.2,3.03095]
[1722445146586,4.4311,3300.0,3299.4,3.03079]
[1722445147262,3.03041,3299.9,3299.4,3.03079]
[1722445149170,7.46141,3300.0,3299.2,3.03097]
[1722445149391,4.4311,3300.0,3299.6,3.03066]
[1722445149598,3.03023,3300.1,3299.6,3.03066]
[1722445149886,3.03031,3300.0,3299.4,3.03077]
[1722445150087,3.03031,3300.0,3299.2,3.03099]
[1722445150237,3.03049,3299.8,3298.9,0.58419945]
[1722445150570,3.03062,3299.7,3299.2,3.03098]
[1722445151587,3.03042,3299.9,3298.8,5.45345]
[1722445151588,2.2934,3299.9,3298.8,5.45345]
[1722445151787,3.03085,3299.4,3298.9,3.03129]
[1722445152141,3.03072,3299.6,3299.0,3.03117]
[1722445152361,3.03072,3299.6,3299.1,3.03112]
[1722445153039,3.03076,3299.5,3299.0,3.879666]
[1722445153246,2.2934,3299.9,3298.8,2.4221]
[1722445153247,3.03091,3299.4,3298.8,2.4221]
[1722445153446,3.03091,3299.4,3298.8,8.45348]
[1722445153774,3.03091,3299.4,3298.9,3.0313]
[1722445153973,6.06147,3299.6,3298.9,3.0313]
[1722445154141,3.03078,3299.5,3298.9,3.0313]
[1722445155255,3.03099,3299.3,3298.8,5.4221]
[1722445155680,3.03106,3299.2,3298.8,2.4221]
[1722445155855,3.03106,3299.2,3298.6,3.03153]
[1722445156261,3.0309,3299.4,3298.7,3.03148]
[1722445156460,3.03099,3299.3,3298.7,3.03148]
[1722445156681,3.03103,3299.2,3298.7,3.03148]
[1722445157244,3.0309,3299.4,3298.7,3.03148]
[1722445157458,3.0309,3299.4,3298.8,3.0314]
[1722445157955,3.0309,3299.4,3298.7,3.03148]
[1722445157956,3.03096,3299.3,3298.6,3.03151]
[1722445158365,3.03105,3299.2,3298.7,3.03148]
[1722445158702,3.03105,3299.2,3298.5,5.31332]
[1722445158703,3.03108,3299.2,3298.6,3.03153]
[1722445159489,3.03108,3299.2,3298.7,3.03149]
[1722445160697,3.03089,3299.4,3298.7,3.03149]
[1722445160698,3.03089,3299.4,3298.8,3.03139]
[1722445161050,3.03103,3299.2,3298.7,3.03149]
[1722445161890,3.03089,3299.4,3298.7,3.0314]
[1722445162187,3.03089,3299.4,3298.7,0.53131]
[1722445162531,4.0362991,3299.8,3298.5,2.2817]
[1722445162532,1.0057891,3299.8,3298.5,2.2817]
[1722445162676,3.03146,3298.8,3298.2,3.03195]
[1722445162998,3.03159,3298.6,3298.1,2.491]
[1722445163178,2.4932,3299.1,3297.9,3.03217]
[1722445163493,3.03183,3298.4,3297.8,3.0323]
[1722445163809,3.03176,3298.5,3297.8,6.06448]
[1722445163989,6.06351,3298.5,3297.8,3.03224]
[1722445164193,3.03175,3298.5,3297.8,4.610379]
[1722445165296,6.06351,3298.5,3297.8,4.610379]
[1722445165595,6.06351,3298.5,3297.9,3.03216]
[1722445165596,3.03175,3298.5,3297.9,3.03216]
[1722445165799,3.03153,3298.7,3298.0,3.03208]
[1722445165977,6.0631,3298.7,3298.1,3.335238]
[1722445166185,3.03168,3298.5,3298.1,0.303208]
[1722445166497,3.03168,3298.5,3297.9,3.03214]
[1722445166654,3.03177,3298.4,3297.9,3.03214]
[1722445167763,3.03156,3298.7,3297.9,3.03214]
[1722445168572,3.03168,3298.5,3297.9,3.03214]
[1722445168795,3.03168,3298.5,3298.0,0.4610279]
[1722445169393,3.03168,3298.5,3298.0,3.4931579]
[1722445169967,3.03141,3298.8,3298.2,3.03194]
[1722445170369,3.0315,3298.7,3298.2,3.03194]
[1722445171342,4.4311,3299.0,3298.3,3.03186]
[1722445171596,3.03149,3298.7,3298.3,2.3395]
[1722445171807,7.46236,3299.0,3298.3,2.3395]
[1722445172308,3.03146,3298.8,3298.3,2.3395]
[1722445172635,3.03146,3298.8,3298.0,5.8326079]
[1722445172636,3.03159,3298.6,3298.0,5.8326079]
[1722445172757,3.03159,3298.6,3298.1,0.88647879]
[1722445172956,3.03159,3298.6,3298.1,3.91849879]
[1722445175903,6.06293,3298.8,3298.2,3.09251162]
[1722445176098,3.03155,3298.7,3298.1,3.91849879]
[1722445176395,3.03146,3298.8,3298.1,3.91849879]
[1722445176396,3.03163,3298.6,3298.1,3.91849879]
[1722445179137,3.03177,3298.4,3298.1,0.88647879]
[1722445179633,3.03163,3298.6,3298.1,0.88647879]
[1722445180042,3.03169,3298.5,3298.1,0.88647879]
[1722445182705,3.03178,3298.4,3298.0,2.3395]
[1722445185032,3.03154,3298.7,3298.0,2.3395]
[1722445185274,3.03154,3298.7,3298.0,5.37162]
[1722445185275,3.03169,3298.5,3298.0,5.37162]
[1722445185832,3.03169,3298.5,3298.0,5.37158]
[1722445187029,3.03169,3298.5,3298.0,5.37157]
[1722445187431,3.03154,3298.7,3298.0,6.211943]
[1722445187637,6.0631,3298.7,3298.1,3.03196]
[1722445187853,6.06312,3298.7,3298.1,3.03196]
[1722445188143,3.03154,3298.7,3298.1,3.03196]
[1722445188341,3.03174,3298.5,3298.0,3.179883]
[1722445189072,3.03174,3298.5,3298.0,6.212023]
[1722445189750,3.03174,3298.5,3297.8,3.03225]
[1722445189958,3.03174,3298.5,3297.9,3.03223]
[1722445190107,6.06349,3298.5,3297.9,3.03223]
[1722445190441,3.03174,3298.5,3297.9,3.03223]
[1722445191849,3.03182,3298.4,3297.8,3.03228]
[1722445193488,3.03182,3298.4,3297.8,3.03226]
[1722445193655,3.03182,3298.4,3297.8,3.574986]
[1722445193837,3.03182,3298.4,3297.9,3.03222]
[1722445195183,3.03182,3298.4,3297.8,0.542726]
[1722445195381,3.03196,3298.2,3297.7,5.42732]
[1722445195583,3.03182,3298.4,3297.7,5.42732]
[1722445195785,3.03191,3298.3,3297.7,5.42732]
[1722445196685,3.03161,3298.6,3297.5,3.03253]
[1722445196892,3.03224,3297.9,3297.4,5.36455]
[1722445197182,3.03224,3297.9,3297.4,2.3319]
[1722445197686,3.03245,3297.7,3297.2,3.03286]
[1722445198742,0.606469,3297.7,3296.7,2.3921]
[1722445198944,3.03276,3297.4,3296.8,3.03318]
[1722445200276,3.03276,3297.4,3296.8,3.02683]
[1722445200685,3.03253,3297.6,3296.7,2.3921]
[1722445200901,3.03278,3297.3,3296.7,2.3921]
[1722445201233,2.692753,3297.6,3296.5,3.03351]
[1722445201234,3.03302,3297.1,3296.5,3.03351]
[1722445201652,3.0328,3297.3,3296.8,2.4581]
[1722445201869,3.03294,3297.2,3296.8,2.4581]
[1722445203239,3.03275,3297.4,3296.8,5.49133]
[1722445203563,7.46337,3297.9,3297.2,3.03282]
[1722445203889,7.46337,3297.9,3297.3,0.06064924]
[1722445204122,3.03198,3298.2,3297.6,3.0325]
[1722445204301,3.03188,3298.3,3297.7,3.09297916]
[1722445204441,3.03188,3298.3,3297.6,3.0325]
[1722445204647,0.31201834,3298.7,3297.4,2.3432]
[1722445204648,3.0321,3298.1,3297.4,2.3432]
[1722445204847,3.03229,3297.9,3297.4,2.3432]
[1722445205145,3.03241,3297.7,3297.0,8.44485]
[1722445205499,3.03241,3297.7,3297.1,6.03295]
[1722445205667,3.03219,3298.0,3297.3,3.03272]
[1722445205990,3.03208,3298.1,3297.3,3.03272]
[1722445205991,3.03224,3297.9,3297.3,3.03272]
[1722445206193,2.413,3298.6,3297.4,2.4086478]
[1722445206342,3.03187,3298.3,3297.5,0.55]
[1722445206542,3.03187,3298.3,3297.6,3.03244]
[1722445206848,2.413,3298.6,3297.1,5.348]
[1722445207067,3.03229,3297.9,3297.2,3.03281]
[1722445207361,3.03206,3298.1,3297.5,3.03257]
[1722445207759,3.03209,3298.1,3297.3,0.838081]
[1722445207989,3.03214,3298.0,3297.2,3.0328]
[1722445208190,3.03214,3298.0,3297.4,3.03263]
[1722445208424,3.03225,3297.9,3297.3,3.03276]
[1722445209376,3.032,3298.2,3297.3,3.03276]
[1722445209581,3.03215,3298.0,3297.4,3.03269]
[1722445210024,3.03215,3298.0,3297.4,3.639235]
[1722445210599,3.03215,3298.0,3297.2,3.03279]
[1722445210600,3.03228,3297.9,3297.2,3.03279]
[1722445211326,3.03242,3297.7,3297.1,5.3809]
[1722445211526,3.03254,3297.6,3297.0,3.033]
[1722445211826,3.03258,3297.6,3297.0,3.033]
[1722445212187,3.03254,3297.6,3296.9,3.03309]
[1722445212415,3.03275,3297.4,3296.8,5.39736]
[1722445212586,3.0328,3297.3,3296.8,5.3974]
[1722445212788,3.0328,3297.3,3296.6,3.03335]
[1722445212980,3.03293,3297.2,3296.6,3.03335]
[1722445213325,3.03277,3297.4,3296.7,3.03331]
[1722445213527,3.03227,3297.9,3296.7,1.914874]
[1722445213824,3.03235,3297.8,3297.2,3.03287]
[1722445214030,3.03251,3297.6,3297.1,2.36]
[1722445214226,3.03265,3297.5,3297.1,2.36]
[1722445214432,3.03241,3297.7,3297.1,5.39295]
[1722445214788,3.03241,3297.7,3297.1,2.36]
[1722445214998,3.335651,3297.7,3297.1,2.36]
[1722445215327,3.03258,3297.6,3297.1,2.36]
[1722445215524,0.303241,3297.7,3297.1,5.39296]
[1722445215831,3.03232,3297.8,3297.2,3.09352131]
[1722445216130,3.03214,3298.0,3297.4,3.03264]
[1722445216328,6.06437,3298.0,3297.4,3.03264]
[1722445216482,3.03228,3297.9,3297.2,3.03281]
[1722445216684,3.03228,3297.9,3297.3,3.03271]
[1722445217404,3.03228,3297.9,3297.3,6.06543]
[1722445217603,3.03228,3297.9,3297.3,3.03271]
[1722445218019,3.03232,3297.8,3297.3,3.03271]
[1722445218811,3.03232,3297.8,3297.1,5.39288]
[1722445218812,3.0324,3297.8,3297.1,5.39288]
[1722445219022,2.2927,3297.7,3296.6,5.4968]
[1722445219333,2.2927,3297.7,3296.6,5.53016]
[1722445219642,3.03277,3297.4,3296.7,3.03333]
[1722445219801,3.03284,3297.3,3296.7,3.03333]
[1722445220400,3.03284,3297.3,3296.7,3.03328]
[1722445220597,3.03288,3297.2,3296.7,0.553008]
[1722445221244,3.03288,3297.2,3296.6,2.4968]
[1722445221539,3.03288,3297.2,3296.6,5.53022]
[1722445221885,6.06551,3297.4,3296.6,5.53016]
[1722445222090,2.2927,3297.7,3296.7,3.0939399]
[1722445222091,3.03285,3297.3,3296.7,3.0939399]
[1722445222415,3.03285,3297.3,3296.8,3.09389843]
[1722445222636,6.0653,3297.5,3296.9,3.03313]
[1722445222973,5.32517,3297.7,3296.9,3.03313]
[1722445223086,3.03269,3297.4,3296.9,3.03313]
[1722445223500,0.22927,3297.6,3296.9,3.03313]
[1722445223737,6.0322,3298.0,3296.6,2.4968]
[1722445224033,3.03232,3297.8,3297.3,3.03277]
[1722445224997,18.20185,3298.4,3297.4,0.06065182]
[1722445224998,3.03198,3298.2,3297.4,0.06065182]
[1722445225319,4.4311,3298.4,3297.7,3.0324]
[1722445225548,3.03179,3298.4,3297.9,3.03222]
[1722445225696,3.03183,3298.4,3297.8,3.03226]
[1722445226035,0.606347,3298.4,3297.5,3.03256]
[1722445226241,3.03184,3298.4,3297.3,3.03273]
[1722445226391,3.03228,3297.9,3297.3,3.03273]
[1722445226589,3.03228,3297.9,3297.3,3.03272]
[1722445226898,3.03228,3297.9,3297.4,3.03269]
[1722445228025,3.03228,3297.9,3297.1,3.03291]
[1722445228337,3.03241,3297.7,3297.1,3.03291]
[1722445228538,3.0326,3297.5,3297.0,3.033]
[1722445228854,3.03241,3297.7,3297.1,3.03295]
[1722445229216,3.03241,3297.7,3297.2,3.03284]
[1722445229753,3.03251,3297.6,3297.0,3.03299]
[1722445230738,3.0324,3297.8,3297.1,3.0329]
[1722445231039,3.0324,3297.8,3297.1,3.03289]
[1722445231393,3.0324,3297.8,3297.3,3.03272]
[1722445232037,4.025048,3298.0,3297.4,3.03264]
[1722445232438,7.057258,3298.0,3297.4,3.03264]
[1722445232599,3.03223,3297.9,3297.4,3.03264]
[1722445233002,7.4631,3298.2,3297.4,3.03262]
[1722445233220,4.4311,3298.2,3297.5,0.06065205]
[1722445233515,4.4311,3298.2,3297.7,3.03236]
[1722445234025,4.4311,3298.2,3297.7,3.03235]
[1722445234245,4.4311,3298.2,3297.8,3.03228]
[1722445234428,4.4311,3298.2,3297.8,5.37108]
[1722445234626,4.4311,3298.2,3297.9,3.0322]
[1722445234828,3.03172,3298.5,3297.9,3.0322]
[1722445235540,7.46264,3298.7,3298.1,3.03198]
[1722445235844,3.03192,3298.3,3297.7,3.03237]
[1722445236196,3.03192,3298.3,3297.5,3.03255]
[1722445236439,3.03192,3298.3,3297.7,3.03239]
[1722445236742,3.03195,3298.2,3297.7,3.03239]
[1722445237041,3.03198,3298.2,3297.7,3.03241]
[1722445237238,3.03187,3298.3,3297.7,3.03241]
[1722445237442,3.03187,3298.3,3297.7,3.03235]
[1722445238266,3.03207,3298.1,3297.5,3.03254]
[1722445238569,6.06418,3298.1,3297.4,3.03268]
[1722445238771,3.03221,3298.0,3297.4,3.03268]
[1722445239072,3.03205,3298.1,3297.4,3.03268]
[1722445239073,3.03226,3297.9,3297.4,3.03268]
[1722445239282,3.03226,3297.9,3297.0,3.033]
[1722445239283,3.03257,3297.6,3297.0,3.033]
[1722445239676,3.03233,3297.8,3297.1,3.03293]
[1722445240032,3.03255,3297.6,3296.9,3.03308]
[1722445240228,3.03267,3297.5,3296.9,3.03308]
[1722445240467,3.0328,3297.3,3296.8,3.03324]
[1722445240645,0.606522,3297.5,3296.8,3.03324]
[1722445240992,3.03256,3297.6,3297.0,3.03304]
[1722445241664,3.03269,3297.4,3296.8,3.03318]
[1722445241837,3.03269,3297.4,3296.9,3.03313]
[1722445242432,6.06515,3297.6,3296.9,3.03313]
[1722445242634,3.03274,3297.4,3296.7,3.03325]
[1722445242985,3.03274,3297.4,3296.7,6.06652]
[1722445243164,3.03274,3297.4,3296.8,3.03322]
[1722445243480,3.0328,3297.3,3296.8,3.03322]
[1722445243693,3.0328,3297.3,3296.7,3.03331]
[1722445244559,3.03296,3297.2,3296.5,3.03344]
[1722445244796,3.03296,3297.2,3296.6,3.03337]
[1722445244958,3.03296,3297.2,3296.4,5.48374]
[1722445245286,3.03299,3297.1,3296.5,3.03349]
[1722445245648,3.03299,3297.1,3296.5,6.06694]
[1722445245848,3.56979955,3297.1,3296.5,3.03345]
[1722445246119,3.56979955,3297.1,3296.0,3.03392]
[1722445246120,3.03342,3296.6,3296.0,3.03392]
[1722445246327,3.03342,3296.6,3295.8,3.03408]
[1722445246328,3.03352,3296.5,3295.8,3.03408]
[1722445246601,3.03364,3296.4,3295.8,3.03408]
[1722445247395,3.03371,3296.3,3295.6,3.03426]
[1722445247547,3.03371,3296.3,3295.6,3.641135]
[1722445247909,3.03391,3296.1,3295.5,3.0344]
[1722445248862,3.03408,3295.9,3295.4,3.03452]
[1722445249065,3.03408,3295.9,3295.2,3.03463]
[1722445249341,3.03408,3295.9,3295.0,3.03488]
[1722445249342,4.4311,3296.6,3295.0,3.03483]
[1722445249528,4.4311,3296.6,3294.9,2.373]
[1722445249529,2.4466,3296.1,3294.9,2.373]
[1722445249671,6.06897,3295.5,3294.9,2.373]
[1722445250016,3.03445,3295.5,3294.9,2.373]
[1722445250181,3.03463,3295.3,3294.6,3.03523]
[1722445250365,3.03455,3295.4,3294.6,3.03526]
[1722445250366,3.03477,3295.2,3294.6,3.03526]
[1722445250564,3.03463,3295.3,3294.6,3.98623341]
[1722445250791,3.03463,3295.3,3294.7,3.03509]
[1722445250999,6.06898,3295.5,3294.8,3.03506]
[1722445251397,3.03445,3295.5,3294.9,3.03499]
[1722445251575,2.4466,3296.1,3294.6,3.98617341]
[1722445251786,3.03473,3295.2,3294.6,3.98617341]
[1722445252018,3.03473,3295.2,3294.4,12.58471]
[1722445252019,3.03486,3295.1,3294.4,10.32543]
[1722445252201,3.03495,3295.0,3294.4,10.32543]
[1722445252568,3.03478,3295.2,3294.4,10.32543]
[1722445252817,3.03481,3295.1,3294.5,3.03536]
[1722445253024,3.03495,3295.0,3294.4,7.29]
[1722445253168,3.035,3294.9,3294.4,7.29]
[1722445253370,3.03509,3294.8,3294.4,7.29]
[1722445253687,3.03538,3294.5,3293.8,3.03596]
[1722445253889,3.03538,3294.5,3293.8,3.03592]
[1722445254965,3.03527,3294.6,3293.9,3.03585]
[1722445255182,3.03518,3294.7,3294.0,3.0358]
[1722445255363,4.4311,3295.4,3294.2,2.3619]
[1722445255568,4.4311,3295.4,3294.3,0.23619]
[1722445255826,3.03465,3295.3,3294.3,3.03548]
[1722445255970,3.03496,3295.0,3294.3,3.03552]
[1722445256172,3.03476,3295.2,3294.3,3.03552]
[1722445256518,3.03476,3295.2,3294.2,0.06070449]
[1722445256519,3.0349,3295.0,3294.4,3.03543]
[1722445256731,4.4311,3295.4,3294.6,3.03521]
[1722445256732,7.4657,3295.4,3294.6,3.03521]
[1722445257036,4.4311,3295.4,3295.2,3.03471]
[1722445257173,3.03422,3295.8,3295.2,3.03471]
[1722445257530,3.03479,3295.2,3294.1,3.0]
[1722445257673,3.03481,3295.1,3294.3,3.03549]
[1722445258018,3.03481,3295.1,3294.5,3.03533]
[1722445258216,3.03456,3295.4,3294.3,3.339039]
[1722445258217,3.03456,3295.4,3294.7,3.03515]
[1722445258420,3.03435,3295.6,3294.9,3.03491]
[1722445258622,3.03444,3295.5,3294.9,3.03491]
[1722445258834,5.3543,3295.9,3294.7,3.03517]
[1722445258835,3.03461,3295.4,3294.7,3.03517]
[1722445258975,3.03458,3295.4,3294.7,3.03509]
[1722445259422,3.03458,3295.4,3294.4,2.3109]
[1722445259423,3.03481,3295.1,3294.4,3.03539]
[1722445259731,3.0348,3295.2,3294.3,3.03551]
[1722445259732,3.03475,3295.2,3294.3,3.03551]
[1722445259910,3.03475,3295.2,3294.6,3.03525]
[1722445260080,0.606896,3295.4,3294.8,3.03502]
[1722445260417,3.03425,3295.7,3295.0,3.03483]
[1722445260606,3.0346,3295.4,3294.6,3.03523]
[1722445260912,5.3543,3295.9,3294.6,3.03523]
[1722445260913,3.03471,3295.2,3294.6,3.03523]
[1722445261415,3.03466,3295.3,3294.6,3.0352]
[1722445261926,3.0345,3295.5,3294.6,3.0352]
[1722445262217,3.03455,3295.4,3294.8,3.03501]
[1722445262373,3.03455,3295.4,3294.6,3.0352]
[1722445262582,3.03477,3295.2,3294.6,3.0352]
[1722445262774,3.03477,3295.2,3294.4,6.07078]
[1722445263012,3.03485,3295.1,3294.0,3.03578]
[1722445263211,3.03485,3295.1,3293.1,5.73779778]
[1722445263212,3.03537,3294.5,3293.8,3.03598]
[1722445263576,3.03537,3294.5,3293.6,3.03617]
[1722445263776,3.03551,3294.4,3293.6,3.03611]
[1722445263973,3.03551,3294.4,3293.7,3.03607]
[1722445264419,3.03563,3294.2,3293.6,3.03612]
[1722445264718,3.03551,3294.4,3293.6,6.07223]
[1722445265015,3.03551,3294.4,3293.7,3.03608]
[1722445265728,3.03555,3294.3,3293.7,3.03608]
[1722445267425,3.03585,3294.0,3293.1,5.29566]
[1722445267582,2.3921,3294.6,3293.1,5.29566]
[1722445267583,3.03615,3293.7,3293.1,3.03656]
[1722445267921,3.03615,3293.7,3293.1,3.03664]
[1722445268942,6.07195,3293.9,3293.1,3.03664]
[1722445269079,3.03603,3293.8,3293.1,3.03664]
[1722445269280,3.03622,3293.6,3292.9,3.03681]
[1722445269480,3.03622,3293.6,3292.9,3.644131]
[1722445269722,3.03622,3293.6,3292.9,3.03675]
[1722445270286,3.03622,3293.6,3293.0,3.03673]
[1722445271119,7.46677,3294.2,3293.2,3.0365]
[1722445271120,3.03592,3293.9,3293.2,3.0365]
[1722445271322,3.03602,3293.8,3293.0,3.03667]
[1722445271623,3.03629,3293.5,3292.8,3.03685]
[1722445271775,3.03643,3293.4,3292.6,8.40776]
[1722445271987,3.03629,3293.5,3292.8,3.03687]
[1722445272429,3.0364,3293.4,3292.8,3.03687]
[1722445272636,3.03622,3293.6,3292.8,3.03687]
[1722445272819,3.03631,3293.5,3292.9,3.03682]
[1722445273156,3.03631,3293.5,3292.7,3.03694]